fUST/lending_fUST_20250318
["ID","MTS","AMOUNT","RATE_DAILY","PERIOD"]
[356303687,1742239836991,-523.76998107,8.219e-05,2]
[356303688,1742239837000,-500.0,8.219e-05,2]
[356303689,1742239837008,-500.0,8.219e-05,2]
[356303690,1742239837018,-500.0,8.219e-05,2]
[356303691,1742239837027,-524.05985975,8.219e-05,2]
[356303692,1742239837036,-500.0,8.219e-05,2]
[356303693,1742239837048,-517.04569471,8.219e-05,2]
[356303694,1742239837061,-500.0,8.219e-05,2]
[356303695,1742239837071,-500.0,8.219e-05,2]
[356303696,1742239837215,-1082.99,8.219e-05,2]
[356303697,1742239837226,-523.93623107,8.219e-05,2]
[356303698,1742239837235,-500.0,8.219e-05,2]
[356303699,1742239837245,-500.0,8.219e-05,2]
[356303700,1742239837255,-246.66705773,8.219e-05,2]
[356303701,1742239837269,-522.74376338,8.219e-05,2]
[356303702,1742239837278,-831.79,8.219e-05,2]
[356303703,1742239837287,-500.0,8.219e-05,2]
[356303704,1742239837297,-500.0,8.219e-05,2]
[356303705,1742239837309,-9217.81,8.219e-05,2]
[356303706,1742239837319,-8019.11,8.219e-05,2]
[356303707,1742239837328,-969.11,8.219e-05,2]
[356303708,1742239837339,-500.0,8.219e-05,2]
[356303709,1742239837350,-500.0,8.219e-05,2]
[356303710,1742239837359,-500.0,8.219e-05,2]
[356303711,1742239837369,-5403.94,8.219e-05,2]
[356303712,1742239837378,-408.16481249,8.219e-05,2]
[356303713,1742239837388,-500.0,8.219e-05,2]
[356303714,1742239837397,-507.66058035,8.219e-05,2]
[356303715,1742239837407,-500.0,8.219e-05,2]
[356303716,1742239837416,-500.0,8.219e-05,2]
[356303717,1742239837426,-500.0,8.219e-05,2]
[356303718,1742239837435,-500.0,8.219e-05,2]
[356303719,1742239837445,-500.0,8.219e-05,2]
[356303720,1742239837455,-500.0,8.219e-05,2]
[356303721,1742239837465,-4099.88,8.219e-05,2]
[356303722,1742239837475,-2449.4,8.219e-05,2]
[356303723,1742239837485,-2032.33,8.219e-05,2]
[356303724,1742239837494,-500.0,8.219e-05,2]
[356303725,1742239837503,-500.0,8.219e-05,2]
[356303726,1742239837513,-622.64455783,8.219e-05,2]
[356303727,1742239837523,-505.35503124,8.219e-05,2]
[356303728,1742239837532,-500.0,8.219e-05,2]
[356303729,1742239837544,-500.0,8.219e-05,2]
[356303730,1742239837553,-500.0,8.219e-05,2]
[356303731,1742239837563,-500.0,8.219e-05,2]
[356303732,1742239837573,-500.0,8.219e-05,2]
[356303733,1742239837582,-500.0,8.219e-05,2]
[356303734,1742239837592,-500.0,8.219e-05,2]
[356303735,1742239837602,-1148.01,8.219e-05,2]
[356303736,1742239837611,-500.0,8.219e-05,2]
[356303737,1742239837621,-4001.35,8.219e-05,2]
[356303738,1742239837631,-1371.66417984,8.219e-05,2]
[356303739,1742239837641,-500.0,8.219e-05,2]
[356303740,1742239837651,-14772.08,8.219e-05,2]
[356303741,1742239837660,-520.31473905,8.219e-05,2]
[356303742,1742239837670,-504.79105483,8.219e-05,2]
[356303743,1742239837679,-500.0,8.219e-05,2]
[356303744,1742239837688,-500.0,8.219e-05,2]
[356303745,1742239837697,-1414.02,8.219e-05,2]
[356303746,1742239837707,-500.0,8.219e-05,2]
[356303747,1742239837716,-508.83369114,8.219e-05,2]
[356303748,1742239837726,-532.90586874,8.219e-05,2]
[356303749,1742239837735,-500.0,8.219e-05,2]
[356303750,1742239837744,-500.0,8.219e-05,2]
[356303751,1742239837753,-500.0,8.219e-05,2]
[356303752,1742239837763,-500.0,8.219e-05,2]
[356303753,1742239837772,-516.80519516,8.219e-05,2]
[356303754,1742239837782,-500.0,8.219e-05,2]
[356303755,1742239837791,-500.0,8.219e-05,2]
[356303756,1742239837801,-500.0,8.219e-05,2]
[356303757,1742239837810,-3316.06,8.219e-05,2]
[356303758,1742239837820,-500.0,8.219e-05,2]
[356303759,1742239837830,-500.0,8.219e-05,2]
[356303760,1742239837841,-3117.65,8.219e-05,2]
[356303761,1742239837851,-500.0,8.219e-05,2]
[356303762,1742239837861,-500.0,8.219e-05,2]
[356303763,1742239837871,-5228.01,8.219e-05,2]
[356303764,1742239837880,-841.56,8.219e-05,2]
[356303765,1742239837890,-500.0,8.219e-05,2]
[356303767,1742239837900,-1497.24,8.219e-05,2]
[356303769,1742239837910,-500.0,8.219e-05,2]
[356303771,1742239837920,-510.40449489,8.219e-05,2]
[356303773,1742239837931,-523.5569315,8.219e-05,2]
[356303775,1742239837942,-1198.88,8.219e-05,2]
[356303776,1742239837952,-2701.7,8.219e-05,2]
[356303777,1742239837962,-500.0,8.219e-05,2]
[356303778,1742239837972,-500.0,8.219e-05,2]
[356303779,1742239837983,-13280.13,8.219e-05,2]
[356303780,1742239837992,-627.97,8.219e-05,2]
[356303781,1742239838003,-500.0,8.219e-05,2]
[356303782,1742239838014,-510.40134383,8.219e-05,2]
[356303783,1742239838023,-613.17676095,8.219e-05,2]
[356303784,1742239838033,-116653.47,8.219e-05,2]
[356303785,1742239838044,-500.0,8.219e-05,2]
[356303786,1742239838054,-15311.62,8.219e-05,2]
[356303787,1742239838065,-500.0,8.219e-05,2]
[356303788,1742239838075,-500.0,8.219e-05,2]
[356303789,1742239838085,-500.0,8.219e-05,2]
[356303790,1742239838096,-500.0,8.219e-05,2]
[356303791,1742239838105,-500.0,8.219e-05,2]
[356303793,1742239838116,-4952.79,8.219e-05,2]
[356303796,1742239838126,-1633.37,8.219e-05,2]
[356303798,1742239838136,-531.49957496,8.219e-05,2]
[356303799,1742239838146,-500.0,8.219e-05,2]
[356303800,1742239838156,-500.0,8.219e-05,2]
[356303802,1742239838166,-500.0,8.219e-05,2]
[356303804,1742239838175,-500.0,8.219e-05,2]
[356303805,1742239838185,-500.0,8.219e-05,2]
[356303806,1742239838195,-521.8930922,8.219e-05,2]
[356303807,1742239838205,-781.91,8.219e-05,2]
[356303808,1742239838214,-781.91,8.219e-05,2]
[356303810,1742239838223,-781.91,8.219e-05,2]
[356303812,1742239838232,-781.91,8.219e-05,2]
[356303814,1742239838242,-781.91,8.219e-05,2]
[356303815,1742239838252,-781.91,8.219e-05,2]
[356303816,1742239838266,-781.91,8.219e-05,2]
[356303817,1742239838277,-513.63,8.219e-05,2]
[356303818,1742239838286,-781.91,8.219e-05,2]
[356303819,1742239838296,-781.91,8.219e-05,2]
[356303820,1742239838307,-781.91,8.219e-05,2]
[356303821,1742239838316,-781.91,8.219e-05,2]
[356303822,1742239838327,-1720.35,8.219e-05,2]
[356303823,1742239838337,-781.91,8.219e-05,2]
[356303824,1742239838348,-781.91,8.219e-05,2]
[356303825,1742239838358,-500.0,8.219e-05,2]
[356303826,1742239838367,-781.91,8.219e-05,2]
[356303827,1742239838376,-781.91,8.219e-05,2]
[356303829,1742239838387,-500.0,8.219e-05,2]
[356303830,1742239838396,-781.91,8.219e-05,2]
[356303831,1742239838405,-781.91,8.219e-05,2]
[356303832,1742239838415,-781.91,8.219e-05,2]
[356303833,1742239838424,-759.25,8.219e-05,2]
[356303834,1742239838434,-781.91,8.219e-05,2]
[356303835,1742239838444,-781.91,8.219e-05,2]
[356303836,1742239838454,-781.91,8.219e-05,2]
[356303837,1742239838463,-781.91,8.219e-05,2]
[356303838,1742239838472,-500.0,8.219e-05,2]
[356303839,1742239838482,-781.91,8.219e-05,2]
[356303840,1742239838491,-762.23,8.219e-05,2]
[356303841,1742239838500,-782.03,8.219e-05,2]
[356303842,1742239838510,-500.0,8.219e-05,2]
[356303843,1742239838520,-500.0,8.219e-05,2]
[356303844,1742239838529,-1842.41,8.219e-05,2]
[356303845,1742239838539,-8883.95,8.219e-05,2]
[356303846,1742239838549,-500.0,8.219e-05,2]
[356303847,1742239838558,-500.0,8.219e-05,2]
[356303848,1742239838567,-500.0,8.219e-05,2]
[356303849,1742239838576,-1000.0,8.219e-05,2]
[356303850,1742239838586,-261.072536,8.219e-05,2]
[356303851,1742239838596,-261.072536,8.219e-05,2]
[356303852,1742239838606,-261.072536,8.219e-05,2]
[356303853,1742239838615,-261.072536,8.219e-05,2]
[356303854,1742239838625,-261.072536,8.219e-05,2]
[356303855,1742239838634,-261.072536,8.219e-05,2]
[356303856,1742239838643,-261.072536,8.219e-05,2]
[356303857,1742239838653,-261.072536,8.219e-05,2]
[356303858,1742239838663,-261.072536,8.219e-05,2]
[356303859,1742239838672,-261.072536,8.219e-05,2]
[356303860,1742239838682,-261.072536,8.219e-05,2]
[356303861,1742239838692,-261.072536,8.219e-05,2]
[356303862,1742239838701,-261.072536,8.219e-05,2]
[356303863,1742239838710,-261.072536,8.219e-05,2]
[356303864,1742239838720,-261.072536,8.219e-05,2]
[356303865,1742239838729,-261.072536,8.219e-05,2]
[356303866,1742239838740,-261.072536,8.219e-05,2]
[356303867,1742239838750,-261.072536,8.219e-05,2]
[356303868,1742239838759,-261.072536,8.219e-05,2]
[356303869,1742239838769,-261.072541,8.219e-05,2]
[356303870,1742239838778,-1000.0,8.219e-05,2]
[356303871,1742239838788,-622.2,8.269e-05,2]
[356303872,1742239838798,-541.0,8.272e-05,2]
[356303873,1742239838808,-2267.0,8.272e-05,2]
[356303874,1742239838819,-1916.0,8.272e-05,2]
[356303875,1742239838828,-399.0,8.272e-05,2]
[356303876,1742239838837,-654.0,8.3e-05,2]
[356303877,1742239838848,-153.0,8.3e-05,2]
[356303878,1742239838857,-153.0,8.3e-05,2]
[356303879,1742239838866,-153.0,8.3e-05,2]
[356303880,1742239838876,-927.69066559,8.324e-05,2]
[356303881,1742239838885,-160.0,8.325e-05,2]
[356303882,1742239838894,-833.89138366,8.325e-05,2]
[356303883,1742239838904,-417.81762827,8.325e-05,2]
[356303884,1742239838913,-160.0,8.325e-05,2]
[356303885,1742239838924,-160.0,8.325e-05,2]
[356303886,1742239838933,-1140.64182303,8.325e-05,2]
[356303887,1742239838943,-152.0,8.327e-05,2]
[356303888,1742239838952,-153.0,8.33e-05,2]
[356303889,1742239838962,-153.0,8.33e-05,2]
[356303890,1742239838971,-153.0,8.33e-05,2]
[356303891,1742239838981,-153.0,8.33e-05,2]
[356303892,1742239838991,-153.0,8.33e-05,2]
[356303893,1742239839001,-153.0,8.34e-05,2]
[356303894,1742239839011,-153.0,8.35e-05,2]
[356303895,1742239839021,-153.0,8.35e-05,2]
[356303896,1742239839031,-153.0,8.35e-05,2]
[356303897,1742239839041,-442.5865686,8.36e-05,2]
[356303898,1742239839050,-153.0,8.36e-05,2]
[356303899,1742239839059,-153.0,8.36e-05,2]
[356303900,1742239839068,-332.21989688,8.374e-05,2]
[356303901,1742239839077,-601.74,8.472e-05,2]
[356303902,1742239839087,-423.03808246,8.473e-05,2]
[356303903,1742239839096,-500.0,8.473e-05,2]
[356303904,1742239839106,-501.28920938,8.473e-05,2]
[356303905,1742239839115,-500.37144267,8.473e-05,2]
[356303906,1742239839125,-500.0,8.473e-05,2]
[356303907,1742239839134,-500.0,8.473e-05,2]
[356303908,1742239839143,-224.07057744,8.473e-05,2]
[356303909,1742239839152,-166.49638332,8.473e-05,2]
[356303910,1742239839162,-500.0,8.473e-05,2]
[356303911,1742239839171,-500.0,8.473e-05,2]
[356303912,1742239839180,-1762.841104,8.473e-05,2]
[356303913,1742239839189,-1762.841104,8.473e-05,2]
[356303914,1742239839199,-352.17586045,8.473e-05,2]
[356303915,1742239839208,-601.74,8.492e-05,2]
[356303916,1742239839217,-601.74,8.492e-05,2]
[356303917,1742239839226,-601.74,8.492e-05,2]
[356303918,1742239839236,-601.74,8.492e-05,2]
[356303919,1742239839245,-601.74,8.492e-05,2]
[356303920,1742239839256,-601.74,8.492e-05,2]
[356303921,1742239839267,-601.74,8.492e-05,2]
[356303922,1742239839277,-601.96742106,8.492e-05,2]
[356303923,1742239839286,-500.02957228,8.493e-05,2]
[356303924,1742239839295,-500.0,8.493e-05,2]
[356303925,1742239839305,-1762.841104,8.493e-05,2]
[356303926,1742239839315,-1762.841104,8.493e-05,2]
[356303927,1742239839325,-1762.841104,8.493e-05,2]
[356303928,1742239839335,-1762.841104,8.493e-05,2]
[356303929,1742239839345,-1762.841104,8.493e-05,2]
[356303930,1742239839354,-1762.841104,8.493e-05,2]
[356303931,1742239839363,-1762.841104,8.493e-05,2]
[356303932,1742239839373,-1762.841102,8.493e-05,2]
[356303933,1742239839383,-500.0,8.493e-05,2]
[356303934,1742239839393,-500.0,8.493e-05,2]
[356303935,1742239839403,-500.0,8.493e-05,2]
[356303936,1742239839413,-500.0,8.493e-05,2]
[356303937,1742239839423,-500.0,8.493e-05,2]
[356303938,1742239839433,-500.0,8.493e-05,2]
[356303939,1742239839443,-500.0,8.493e-05,2]
[356303940,1742239839453,-500.0,8.493e-05,2]
[356303941,1742239839463,-500.0,8.493e-05,2]
[356303942,1742239839472,-500.0,8.493e-05,2]
[356303943,1742239839482,-500.0,8.493e-05,2]
[356303944,1742239839492,-500.0,8.493e-05,2]
[356303945,1742239839503,-500.0,8.493e-05,2]
[356303946,1742239839512,-500.0,8.493e-05,2]
[356303947,1742239839522,-500.0,8.493e-05,2]
[356303948,1742239839531,-500.0,8.493e-05,2]
[356303949,1742239839540,-500.0,8.493e-05,2]
[356303950,1742239839550,-500.0,8.493e-05,2]
[356303951,1742239839559,-500.0,8.493e-05,2]
[356303952,1742239839568,-500.0,8.493e-05,2]
[356303953,1742239839578,-500.0,8.493e-05,2]
[356303954,1742239839587,-500.0,8.493e-05,2]
[356303955,1742239839597,-500.0,8.493e-05,2]
[356303956,1742239839607,-500.0,8.493e-05,2]
[356303957,1742239839616,-645.85,8.493e-05,2]
[356303958,1742239839625,-500.0,8.493e-05,2]
[356303959,1742239839635,-500.0,8.493e-05,2]
[356303960,1742239839643,-513.4260612,8.493e-05,2]
[356303961,1742239839653,-500.0,8.493e-05,2]
[356303962,1742239839662,-500.0,8.493e-05,2]
[356303963,1742239839672,-500.0,8.493e-05,2]
[356303964,1742239839681,-900.68,8.493e-05,2]
[356303965,1742239839691,-500.0,8.493e-05,2]
[356303966,1742239839700,-1020.3,8.493e-05,2]
[356303967,1742239839710,-500.0,8.493e-05,2]
[356303968,1742239839719,-500.0,8.493e-05,2]
[356303969,1742239839729,-500.0,8.493e-05,2]
[356303970,1742239839738,-500.0,8.493e-05,2]
[356303971,1742239839748,-1629.54,8.493e-05,2]
[356303972,1742239839757,-1110.45,8.493e-05,2]
[356303973,1742239839766,-500.0,8.493e-05,2]
[356303974,1742239839777,-500.0,8.493e-05,2]
[356303975,1742239839786,-500.0,8.493e-05,2]
[356303976,1742239839795,-500.0,8.493e-05,2]
[356303977,1742239839805,-500.0,8.493e-05,2]
[356303978,1742239839814,-296.74202134,8.493e-05,2]
[356303979,1742239839824,-775.61,8.493e-05,2]
[356303980,1742239839833,-500.0,8.493e-05,2]
[356303981,1742239839844,-500.0,8.493e-05,2]
[356303982,1742239839853,-500.0,8.493e-05,2]
[356303983,1742239839863,-500.0,8.493e-05,2]
[356303984,1742239839873,-500.0,8.493e-05,2]
[356303985,1742239839883,-500.0,8.493e-05,2]
[356303986,1742239839892,-500.0,8.493e-05,2]
[356303987,1742239839902,-500.0,8.493e-05,2]
[356303988,1742239839912,-500.0,8.493e-05,2]
[356303990,1742239839922,-500.0,8.493e-05,2]
[356303992,1742239839931,-500.0,8.493e-05,2]
[356303993,1742239839940,-500.0,8.493e-05,2]
[356303994,1742239839949,-500.0,8.493e-05,2]
[356303995,1742239839959,-888.56,8.493e-05,2]
[356303996,1742239839969,-500.0,8.493e-05,2]
[356303997,1742239839979,-500.0,8.493e-05,2]
[356303998,1742239839988,-1079.7,8.493e-05,2]
[356303999,1742239839998,-525.06133058,8.493e-05,2]
[356304000,1742239840008,-500.0,8.493e-05,2]
[356304001,1742239840017,-500.0,8.493e-05,2]
[356304002,1742239840027,-500.0,8.493e-05,2]
[356304003,1742239840036,-500.0,8.493e-05,2]
[356304004,1742239840045,-500.0,8.493e-05,2]
[356304005,1742239840055,-500.0,8.493e-05,2]
[356304006,1742239840064,-500.0,8.493e-05,2]
[356304007,1742239840074,-573.92973129,8.493e-05,2]
[356304008,1742239840083,-278.44343201,8.493e-05,2]
[356304009,1742239840093,-500.0,8.493e-05,2]
[356304010,1742239840102,-500.0,8.493e-05,2]
[356304011,1742239840111,-500.0,8.493e-05,2]
[356304012,1742239840120,-500.0,8.493e-05,2]
[356304013,1742239840130,-500.0,8.493e-05,2]
[356304014,1742239840139,-277.62339974,8.493e-05,2]
[356304015,1742239840149,-500.0,8.493e-05,2]
[356304016,1742239840158,-500.0,8.493e-05,2]
[356304017,1742239840168,-500.0,8.493e-05,2]
[356304018,1742239840177,-500.0,8.493e-05,2]
[356304019,1742239840187,-500.0,8.493e-05,2]
[356304020,1742239840196,-500.0,8.493e-05,2]
[356304021,1742239840205,-500.0,8.493e-05,2]
[356304023,1742239840348,-500.0,8.493e-05,2]
[356304025,1742239840358,-500.0,8.493e-05,2]
[356304026,1742239840367,-618.43774114,8.493e-05,2]
[356304027,1742239840377,-622.39,8.493e-05,2]
[356304028,1742239840386,-500.0,8.493e-05,2]
[356304029,1742239840396,-500.0,8.493e-05,2]
[356304031,1742239840405,-500.0,8.493e-05,2]
[356304032,1742239840415,-500.0,8.493e-05,2]
[356304033,1742239840425,-500.0,8.493e-05,2]
[356304034,1742239840434,-500.0,8.493e-05,2]
[356304035,1742239840444,-6858.98,8.493e-05,2]
[356304037,1742239840454,-500.0,8.493e-05,2]
[356304039,1742239840463,-156.99385972,8.493e-05,2]
[356304041,1742239840472,-500.0,8.493e-05,2]
[356304043,1742239840482,-500.0,8.493e-05,2]
[356304044,1742239840491,-1706.85,8.493e-05,2]
[356304045,1742239840501,-500.0,8.493e-05,2]
[356304047,1742239840510,-632.60161556,8.493e-05,2]
[356304049,1742239840520,-500.0,8.493e-05,2]
[356304050,1742239840529,-7315.78,8.493e-05,2]
[356304051,1742239840539,-500.0,8.493e-05,2]
[356304052,1742239840549,-500.0,8.493e-05,2]
[356304053,1742239840559,-538.6,8.493e-05,2]
[356304054,1742239840570,-4405.64,8.493e-05,2]
[356304055,1742239840580,-4594.27,8.493e-05,2]
[356304056,1742239840589,-500.0,8.493e-05,2]
[356304057,1742239840599,-500.0,8.493e-05,2]
[356304058,1742239840609,-500.0,8.493e-05,2]
[356304060,1742239840619,-2145.42,8.493e-05,2]
[356304062,1742239840628,-500.0,8.493e-05,2]
[356304064,1742239840638,-500.0,8.493e-05,2]
[356304066,1742239840647,-500.0,8.493e-05,2]
[356304068,1742239840656,-500.0,8.493e-05,2]
[356304070,1742239840666,-510.72074493,8.493e-05,2]
[356304072,1742239840675,-500.0,8.493e-05,2]
[356304074,1742239840685,-500.0,8.493e-05,2]
[356304076,1742239840694,-500.0,8.493e-05,2]
[356304078,1742239840703,-500.0,8.493e-05,2]
[356304080,1742239840712,-500.0,8.493e-05,2]
[356304082,1742239840722,-500.0,8.493e-05,2]
[356304084,1742239840731,-500.0,8.493e-05,2]
[356304086,1742239840741,-500.0,8.493e-05,2]
[356304088,1742239840751,-500.0,8.493e-05,2]
[356304090,1742239840760,-500.0,8.493e-05,2]
[356304092,1742239840770,-500.0,8.493e-05,2]
[356304094,1742239840779,-1082.99,8.493e-05,2]
[356304096,1742239840788,-466.75301689,8.493e-05,2]
[356304098,1742239840797,-500.0,8.493e-05,2]
[356304100,1742239840806,-831.79,8.493e-05,2]
[356304102,1742239840816,-500.0,8.493e-05,2]
[356304104,1742239840825,-500.0,8.493e-05,2]
[356304106,1742239840834,-9217.81,8.493e-05,2]
[356304108,1742239840843,-8019.11,8.493e-05,2]
[356304110,1742239840852,-969.11,8.493e-05,2]
[356304112,1742239840862,-237.82570446,8.493e-05,2]
[356304114,1742239840871,-195.15343696,8.493e-05,2]
[356304116,1742239840881,-5403.94,8.493e-05,2]
[356304118,1742239840890,-500.0,8.493e-05,2]
[356304120,1742239840900,-500.0,8.493e-05,2]
[356304122,1742239840909,-522.44364487,8.493e-05,2]
[356304124,1742239840918,-500.0,8.493e-05,2]
[356304126,1742239840927,-500.0,8.493e-05,2]
[356304128,1742239840937,-4099.88,8.493e-05,2]
[356304130,1742239840946,-2449.4,8.493e-05,2]
[356304132,1742239840956,-2032.33,8.493e-05,2]
[356304134,1742239840965,-500.0,8.493e-05,2]
[356304136,1742239840974,-500.0,8.493e-05,2]
[356304138,1742239840984,-500.0,8.493e-05,2]
[356304140,1742239840993,-500.0,8.493e-05,2]
[356304142,1742239841003,-1148.01,8.493e-05,2]
[356304144,1742239841012,-500.0,8.493e-05,2]
[356304146,1742239841023,-4001.35,8.493e-05,2]
[356304148,1742239841033,-500.0,8.493e-05,2]
[356304150,1742239841043,-14772.08,8.493e-05,2]
[356304152,1742239841053,-500.0,8.493e-05,2]
[356304154,1742239841063,-500.0,8.493e-05,2]
[356304155,1742239841074,-1414.02,8.493e-05,2]
[356304156,1742239841083,-500.0,8.493e-05,2]
[356304157,1742239841093,-500.0,8.493e-05,2]
[356304158,1742239841103,-150.3,8.493e-05,2]
[356304160,1742239841112,-500.0,8.493e-05,2]
[356304161,1742239841122,-500.0,8.493e-05,2]
[356304162,1742239841132,-500.0,8.493e-05,2]
[356304163,1742239841142,-150.3,8.493e-05,2]
[356304164,1742239841151,-574.79985077,8.493e-05,2]
[356304165,1742239841160,-500.0,8.493e-05,2]
[356304166,1742239841170,-3316.06,8.493e-05,2]
[356304167,1742239841180,-500.0,8.493e-05,2]
[356304168,1742239841190,-500.0,8.493e-05,2]
[356304169,1742239841200,-500.0,8.493e-05,2]
[356304170,1742239841210,-204.28165713,8.493e-05,2]
[356304171,1742239841219,-3117.65,8.493e-05,2]
[356304172,1742239841228,-500.0,8.493e-05,2]
[356304173,1742239841238,-500.0,8.493e-05,2]
[356304174,1742239841250,-500.0,8.493e-05,2]
[356304175,1742239841262,-500.0,8.493e-05,2]
[356304176,1742239841271,-5228.01,8.493e-05,2]
[356304177,1742239841281,-841.56,8.493e-05,2]
[356304178,1742239841291,-200.88025919,8.493e-05,2]
[356304179,1742239841301,-500.0,8.493e-05,2]
[356304180,1742239841311,-1497.24,8.493e-05,2]
[356304181,1742239841320,-500.0,8.493e-05,2]
[356304182,1742239841330,-1198.88,8.493e-05,2]
[356304183,1742239841341,-2701.7,8.493e-05,2]
[356304184,1742239841351,-500.0,8.493e-05,2]
[356304185,1742239841361,-500.0,8.493e-05,2]
[356304186,1742239841372,-13280.13,8.493e-05,2]
[356304187,1742239841382,-627.97,8.493e-05,2]
[356304188,1742239841392,-500.0,8.493e-05,2]
[356304189,1742239841403,-116653.47,8.493e-05,2]
[356304190,1742239841413,-15311.62,8.493e-05,2]
[356304191,1742239841423,-500.0,8.493e-05,2]
[356304192,1742239841434,-500.0,8.493e-05,2]
[356304193,1742239841444,-500.0,8.493e-05,2]
[356304194,1742239841453,-500.0,8.493e-05,2]
[356304195,1742239841462,-4952.79,8.493e-05,2]
[356304196,1742239841472,-1633.37,8.493e-05,2]
[356304197,1742239841482,-513.63,8.493e-05,2]
[356304198,1742239841492,-1720.35,8.493e-05,2]
[356304199,1742239841502,-500.0,8.493e-05,2]
[356304200,1742239841511,-759.25,8.493e-05,2]
[356304201,1742239841521,-500.0,8.493e-05,2]
[356304202,1742239841531,-762.23,8.493e-05,2]
[356304203,1742239841540,-500.0,8.493e-05,2]
[356304204,1742239841551,-1842.41,8.493e-05,2]
[356304205,1742239841560,-8883.95,8.493e-05,2]
[356304206,1742239841570,-500.0,8.493e-05,2]
[356304207,1742239841580,-500.0,8.493e-05,2]
[356304208,1742239841589,-152.90566202,8.52e-05,2]
[356304209,1742239841601,-150.3,8.52e-05,2]
[356304210,1742239841612,-500.0,8.52e-05,2]
[356304211,1742239841621,-500.0,8.52e-05,2]
[356304212,1742239841631,-500.0,8.52e-05,2]
[356304213,1742239841643,-199.4,8.548e-05,2]
[356304214,1742239841653,-500.0,8.548e-05,2]
[356304215,1742239841662,-500.0,8.548e-05,2]
[356304216,1742239841672,-500.0,8.548e-05,2]
[356304217,1742239841682,-196.0,8.572e-05,2]
[356304218,1742239841691,-500.0,8.575e-05,2]
[356304219,1742239841701,-958.96705158,8.575e-05,2]
[356304220,1742239841710,-500.0,8.575e-05,2]
[356304221,1742239841721,-61023.3090999,8.592e-05,2]
[356304222,1742239841730,-1369.22,8.6e-05,2]
[356304223,1742239841740,-500.0,8.603e-05,2]
[356304224,1742239841749,-500.0,8.603e-05,2]
[356304225,1742239841759,-850.0,8.63e-05,2]
[356304226,1742239841767,-500.0,8.63e-05,2]
[356304227,1742239841777,-824.8950106,8.64e-05,2]
[356304228,1742239841786,-2500.0,8.651e-05,2]
[356304229,1742239841795,-500.0,8.657e-05,2]
[356304230,1742239841804,-2500.0,8.66e-05,2]
[356304231,1742239841814,-2500.0,8.668e-05,2]
[356304232,1742239841823,-2500.0,8.677e-05,2]
[356304233,1742239841833,-71590.65603251,8.679e-05,2]
[356304234,1742239841843,-140895.20246387,8.679e-05,2]
[356304235,1742239841853,-500.0,8.685e-05,2]
[356304236,1742239841862,-2500.0,8.686e-05,2]
[356304237,1742239841871,-2500.0,8.695e-05,2]
[356304238,1742239841881,-2500.0,8.704e-05,2]
[356304239,1742239841891,-500.0,8.712e-05,2]
[356304240,1742239841900,-2500.0,8.712e-05,2]
[356304241,1742239841911,-2500.0,8.721e-05,2]
[356304242,1742239841920,-2500.0,8.728e-05,2]
[356304243,1742239841930,-2500.0,8.73e-05,2]
[356304244,1742239841939,-2500.0,8.737e-05,2]
[356304245,1742239841949,-2500.0,8.739e-05,2]
[356304246,1742239841958,-500.0,8.74e-05,2]
[356304247,1742239841968,-502.43722086,8.743e-05,2]
[356304248,1742239841978,-500.0,8.743e-05,2]
[356304249,1742239841987,-500.0,8.743e-05,2]
[356304250,1742239841996,-500.0,8.743e-05,2]
[356304251,1742239842006,-500.0,8.743e-05,2]
[356304252,1742239842015,-609.1247434,8.743e-05,2]
[356304253,1742239842024,-500.0,8.743e-05,2]
[356304254,1742239842033,-500.0,8.743e-05,2]
[356304255,1742239842042,-452.63766718,8.743e-05,2]
[356304256,1742239842052,-500.0,8.743e-05,2]
[356304257,1742239842061,-160.81251148,8.743e-05,2]
[356304258,1742239842070,-500.0,8.743e-05,2]
[356304259,1742239842080,-500.0,8.743e-05,2]
[356304260,1742239842089,-500.0,8.743e-05,2]
[356304261,1742239842099,-500.0,8.743e-05,2]